bitfinex/quotes_SOLUSD_20240727
["timestamp","ask_amount","ask_price","bid_price","bid_amount"]
[1722085566232,32.41,186.53,186.49,16.3638]
[1722085566415,38.02398967,186.53,186.49,16.3638]
[1722085566613,5.3615,186.52,186.49,16.3638]
[1722085566816,12.41,186.51,186.47,6.0302]
[1722085567050,17.7718,186.51,186.47,6.0302]
[1722085567709,32.41,186.48,186.45,16.2182]
[1722085567950,5.3633,186.45,186.41,19.4919]
[1722085568121,5.3642,186.42,186.41,6.0813]
[1722085568313,20.0,186.46,186.41,6.0813]
[1722085568314,5.3639,186.44,186.41,6.0813]
[1722085568510,17.7739,186.44,186.41,6.0813]
[1722085569113,17.7739,186.44,186.4,19.6535992]
[1722085569432,5.3645,186.41,186.4,3.0669992]
[1722085570936,17.7742,186.42,186.4,3.0669992]
[1722085571327,5.3642,186.42,186.4,3.0669992]
[1722085572225,17.7739,186.43,186.4,3.0669992]
[1722085572833,5.3642,186.42,186.4,3.0669992]
[1722085573326,5.3645,186.41,186.4,3.0669992]
[1722085573533,17.7745,186.41,186.4,3.0669992]
[1722085574040,5.3645,186.41,186.4,3.0669992]
[1722085576415,37.7745,186.41,186.4,3.0669992]
[1722085576851,5.61744172,186.41,186.4,3.0669992]
[1722085577233,5.3642,186.42,186.4,3.0669992]
[1722085577436,20.0,186.43,186.4,3.0669992]
[1722085577952,5.3644,186.42,186.4,3.0669992]
[1722085578137,37.7745,186.41,186.4,3.0669992]
[1722085578460,37.7745,186.41,186.33,19.4982]
[1722085578461,5.3654,186.38,186.33,24.8649]
[1722085578618,17.7754,186.38,186.33,24.8649]
[1722085578941,17.7754,186.38,186.33,19.4982]
[1722085580056,20.0,186.37,186.33,19.4982]
[1722085580261,32.41,186.34,186.31,16.5866]
[1722085580539,12.41,186.37,186.31,21.9538]
[1722085580741,20.0,186.38,186.33,5.3667]
[1722085581046,5.365,186.39,186.33,13.4169]
[1722085581245,5.3648,186.4,186.34,5.3664]
[1722085581444,5.6169637,186.44,186.37,12.41]
[1722085581622,25.3639,186.43,186.38,13.4133]
[1722085581827,5.3647,186.41,186.36,18.4913]
[1722085582033,20.0,186.41,186.36,6.0813]
[1722085582230,5.3651,186.39,186.36,6.0813]
[1722085582826,12.41,186.4,186.36,6.0813]
[1722085583033,12.41,186.41,186.36,6.0813]
[1722085583346,12.41,186.42,186.36,6.0813]
[1722085583959,20.0,186.41,186.36,11.4472]
[1722085584244,5.3648,186.4,186.36,6.0813]
[1722085584448,17.7748,186.4,186.36,6.0813]
[1722085585052,5.3648,186.4,186.36,6.0813]
[1722085585230,12.41,186.41,186.36,6.0813]
[1722085585231,17.7745,186.41,186.36,6.0813]
[1722085585429,25.61437064,186.43,186.36,6.0813]
[1722085585430,12.41,186.42,186.36,6.0813]
[1722085585637,10.97847064,186.43,186.37,17.7754]
[1722085585822,5.3641,186.43,186.37,17.7754]
[1722085586044,20.0,186.43,186.36,37.2715]
[1722085586341,5.3645,186.41,186.36,19.4956]
[1722085586543,5.3645,186.41,186.36,24.8615]
[1722085586748,5.61658084,186.44,186.38,12.41]
[1722085586927,16.2418,186.48,186.38,12.41]
[1722085586928,12.41,186.47,186.39,12.41]
[1722085587447,32.41,186.46,186.39,12.41]
[1722085587838,12.41,186.46,186.39,12.41]
[1722085588051,5.3634,186.45,186.39,5.365]
[1722085588251,20.0,186.44,186.38,13.4128]
[1722085588437,12.41,186.42,186.37,16.6061]
[1722085588649,17.7743,186.42,186.37,16.6061]
[1722085589036,5.3643,186.42,186.37,16.6061]
[1722085589340,5.3643,186.42,186.37,21.9717]
[1722085590046,5.3648,186.4,186.37,16.6061]
[1722085590233,37.7745,186.41,186.37,16.6061]
[1722085590555,25.3645,186.41,186.37,16.6061]
[1722085592035,12.41,186.4,186.36,6.0813]
[1722085592837,17.7748,186.4,186.36,6.0813]
[1722085593253,5.3648,186.4,186.36,6.0813]
[1722085593952,37.7751,186.39,186.33,20.7649]
[1722085594139,5.3654,186.38,186.33,20.7649]
[1722085594749,5.365,186.4,186.33,41.2246]
[1722085595164,5.3641,186.43,186.38,5.3653]
[1722085595456,25.363,186.47,186.4,17.7747]
[1722085595657,25.363,186.47,186.41,5.3644]
[1722085595658,5.3631,186.46,186.41,5.3644]
[1722085595962,5.3631,186.46,186.4,5.3647]
[1722085596146,5.3633,186.45,186.4,5.3647]
[1722085596548,5.3637,186.44,186.39,11.6592]
[1722085596746,5.3637,186.44,186.39,6.2942]
[1722085596952,25.3634,186.45,186.39,24.0692]
[1722085597547,25.61443095,186.48,186.41,5.3642]
[1722085597745,20.0,186.46,186.4,31.1862]
[1722085597945,5.3637,186.44,186.39,24.0692]
[1722085598148,5.3634,186.45,186.39,24.0692]
[1722085598362,5.3634,186.45,186.4,5.3647]
[1722085598566,5.3631,186.46,186.4,33.1728]
[1722085598746,5.3634,186.45,186.4,33.1728]
[1722085598948,5.3634,186.45,186.4,27.8081]
[1722085599159,45.0,186.47,186.41,12.41]
[1722085599160,5.59952446,186.47,186.41,12.41]
[1722085599365,5.3626,186.48,186.42,17.7741]
[1722085599659,5.3626,186.48,186.43,17.7739]
[1722085599660,20.0,186.48,186.43,17.7739]
[1722085599853,32.41,186.48,186.41,25.8205]
[1722085600060,5.3628,186.47,186.41,31.1849]
[1722085601545,5.3631,186.46,186.41,31.1849]
[1722085601742,5.3634,186.45,186.41,13.4105]
[1722085602048,5.3645,186.41,186.37,13.4141]
[1722085602457,25.3645,186.41,186.36,5.3657]
[1722085602660,37.7745,186.41,186.36,5.3657]
[1722085602857,37.7745,186.41,186.35,5.3662]
[1722085603668,12.41,186.4,186.33,6.2942]
[1722085603855,12.41,186.38,186.33,6.2942]
[1722085604681,17.7754,186.38,186.33,6.2942]
[1722085604854,5.3654,186.38,186.33,6.2942]
[1722085605760,32.41,186.37,186.33,6.2942]
[1722085605957,17.7762,186.36,186.32,15.3981]
[1722085606156,20.0,186.37,186.32,15.3981]
[1722085606157,25.3657,186.37,186.32,15.3981]
[1722085606354,17.7753,186.39,186.33,5.3667]
[1722085606669,32.41,186.4,186.33,17.7767]
[1722085607070,5.3651,186.39,186.34,5.3663]
[1722085607254,5.3651,186.39,186.33,17.7767]
[1722085607753,2.18956468,186.44,186.32,15.3981]
[1722085607754,32.41,186.37,186.32,15.3981]
[1722085607951,5.366,186.36,186.32,15.3981]
[1722085609760,5.3662,186.35,186.32,15.3981]
[1722085609965,5.3668,186.33,186.29,6.19]
[1722085610155,32.41,186.35,186.29,6.19]
[1722085610357,5.59412887,186.36,186.29,6.19]
[1722085610358,5.59412887,186.36,186.31,12.41]
[1722085610558,20.0,186.37,186.31,12.41]
[1722085610959,5.366,186.36,186.31,17.7773]
[1722085611165,5.3657,186.37,186.32,17.7769]
[1722085611479,5.3656,186.37,186.33,12.41]
[1722085611663,5.366,186.36,186.31,12.41]
[1722085611855,5.3663,186.35,186.31,12.41]
[1722085612062,5.3663,186.35,186.3,31.1962]
[1722085612258,5.3658,186.37,186.31,17.7771]
[1722085612459,5.3658,186.37,186.32,12.41]
[1722085612658,5.3654,186.38,186.32,17.7769]
[1722085613372,5.3657,186.37,186.32,17.7769]
[1722085613677,5.59343146,186.39,186.31,17.7773]
[1722085613678,5.366,186.36,186.31,17.7773]
[1722085613886,5.3662,186.35,186.31,12.41]
[1722085614064,5.3659,186.36,186.3,31.1962]
[1722085614762,5.3659,186.36,186.3,32.26958118]
[1722085614965,5.3659,186.36,186.31,12.41]
[1722085615277,5.3663,186.35,186.3,13.4186]
[1722085615482,5.3663,186.35,186.3,26.90204867]
[1722085615681,5.366,186.36,186.3,32.26954867]
[1722085615976,5.366,186.36,186.31,12.41]
[1722085617077,5.366,186.36,186.29,18.6]
[1722085617078,32.41,186.36,186.29,18.6]
[1722085617269,5.3662,186.35,186.3,17.7776]
[1722085617470,5.3662,186.35,186.29,6.19]
[1722085617471,5.3659,186.37,186.32,12.41]
[1722085618696,5.366,186.36,186.32,12.41]
[1722085618980,5.3662,186.35,186.31,12.41]
[1722085619182,20.0,186.38,186.31,17.7773]
[1722085619572,5.3659,186.36,186.31,12.41]
[1722085622385,10.95853146,186.39,186.35,12.41]
[1722085624203,5.59343146,186.39,186.35,12.41]
[1722085624371,5.59343146,186.39,186.37,12.41]
[1722085624711,5.3645,186.41,186.37,12.41]
[1722085624876,5.3648,186.4,186.36,18.6404]
[1722085625213,5.3645,186.41,186.36,18.6404]
[1722085625379,5.3645,186.41,186.36,6.2304]
[1722085625578,5.3645,186.41,186.36,11.5963]
[1722085625900,5.3645,186.41,186.36,6.2304]
[1722085626208,5.3648,186.4,186.36,6.2304]
[1722085627373,12.41,186.42,186.36,6.2304]
[1722085627615,5.3643,186.42,186.36,18.6404]
[1722085627795,5.3643,186.42,186.36,24.0062]
[1722085627987,5.3643,186.42,186.37,5.3655]
[1722085628580,5.3643,186.42,186.37,17.7755]
[1722085628793,5.3643,186.42,186.37,12.41]
[1722085629402,5.3645,186.41,186.37,12.41]
[1722085629581,5.3645,186.41,186.36,24.0063]
[1722085630515,5.3645,186.41,186.37,12.41]
[1722085630894,5.3641,186.43,186.37,17.7755]
[1722085631209,5.59094384,186.45,186.41,12.41]
[1722085631379,5.3633,186.45,186.41,12.41]
[1722085632008,5.3631,186.46,186.41,12.41]
[1722085632499,5.3633,186.45,186.41,12.41]
[1722085633010,12.41,186.46,186.38,18.7783]
[1722085633209,12.41,186.46,186.38,31.1883]
[1722085633788,5.3637,186.44,186.39,5.3649]
[1722085634414,5.3637,186.44,186.39,17.7749]
[1722085635192,5.3637,186.44,186.39,12.41]
[1722085635380,5.3634,186.45,186.39,17.7748]
[1722085636418,5.3634,186.45,186.4,12.41]
[1722085637215,5.3636,186.44,186.4,12.41]
[1722085638512,5.3636,186.44,186.39,17.7748]
[1722085639305,5.3639,186.43,186.39,12.41]
[1722085640407,5.3637,186.44,186.39,12.41]
[1722085640788,5.364,186.43,186.39,12.41]
[1722085641515,12.41,186.46,186.39,12.41]
[1722085641698,20.0,186.47,186.39,12.41]
[1722085641892,32.41,186.47,186.39,12.41]
[1722085642629,5.3638,186.44,186.39,12.41]
[1722085643310,5.3638,186.44,186.39,17.775]
[1722085643602,5.3634,186.45,186.4,17.7747]
[1722085643793,5.3634,186.45,186.4,12.41]
[1722085643988,5.3636,186.44,186.39,17.775]
[1722085644514,5.3636,186.44,186.39,5.365]
[1722085644706,5.3639,186.43,186.38,25.823]
[1722085645012,5.3636,186.44,186.39,12.41]
[1722085645209,5.3636,186.44,186.39,17.775]
[1722085645419,5.3636,186.44,186.4,12.41]
[1722085646508,5.3633,186.46,186.4,17.7747]
[1722085646711,33.4061,186.49,186.4,17.7747]
[1722085646712,5.3633,186.45,186.4,5.3647]
[1722085646907,5.3633,186.45,186.4,17.7747]
[1722085647118,5.3631,186.46,186.4,17.7747]
[1722085647303,5.3631,186.46,186.41,12.41]
[1722085647503,5.3634,186.45,186.41,12.41]
[1722085648113,5.363,186.47,186.42,12.41]
[1722085648496,5.363,186.47,186.43,12.41]
[1722085649005,5.3631,186.46,186.43,12.41]
[1722085649519,5.3631,186.46,186.42,13.48272523]
[1722085649819,5.3631,186.46,186.42,12.41]
[1722085650135,5.3631,186.46,186.42,13.48272477]
[1722085651106,5.58782584,186.49,186.44,12.41]
[1722085651316,5.3625,186.48,186.44,12.41]
[1722085651508,5.3622,186.49,186.45,13.48255906]
[1722085652221,5.3622,186.49,186.45,12.41]
[1722085653299,5.3622,186.49,186.44,5.3636]
[1722085653300,5.3622,186.49,186.46,12.41]
[1722085655333,27.75920814,186.54,186.47,12.41]
[1722085655334,5.3618,186.51,186.47,12.41]
[1722085655539,5.3614,186.52,186.48,12.41]
[1722085655827,35.6068,186.58,186.5,12.41]
[1722085656009,22.08389202,186.57,186.5,12.41]
[1722085656203,12.41,186.57,186.5,12.41]
[1722085656416,5.3611,186.53,186.48,18.9091]
[1722085656727,32.41,186.56,186.48,18.9091]
[1722085656728,5.3616,186.51,186.48,18.9091]
[1722085658402,5.3613,186.52,186.48,18.9091]
[1722085660620,5.3611,186.53,186.49,12.41]
[1722085661720,5.3611,186.53,186.48,24.2715]
[1722085662225,5.3611,186.53,186.48,18.9091]
[1722085662672,5.3611,186.53,186.48,6.4991]
[1722085662818,5.3611,186.53,186.48,18.9091]
[1722085663215,5.3611,186.53,186.48,24.2715]
[1722085665838,5.3611,186.53,186.48,18.9091]
[1722085667034,5.3618,186.51,186.48,6.4991]
[1722085667238,5.3613,186.53,186.48,6.4991]
[1722085667429,5.3614,186.52,186.48,6.4991]
[1722085671254,5.361,186.53,186.48,6.4991]
[1722085671841,5.3614,186.52,186.48,6.4991]
[1722085675258,5.3611,186.53,186.48,6.4991]
[1722085677161,5.3613,186.52,186.48,6.4991]
[1722085677457,17.77892782,186.58,186.52,5.3612]
[1722085677458,5.3597,186.58,186.52,5.3612]
[1722085677771,5.3597,186.58,186.53,17.771]
[1722085678145,5.3597,186.58,186.53,5.361]
[1722085679159,5.3597,186.58,186.52,5.3612]
[1722085680946,5.3597,186.58,186.53,5.361]
[1722085681761,5.3597,186.58,186.52,5.3612]
[1722085682056,5.3599,186.57,186.51,5.3615]
[1722085682259,12.41,186.59,186.5,18.766]
[1722085682446,32.41,186.58,186.51,12.41]
[1722085682651,5.3605,186.55,186.49,5.362]
[1722085682848,5.3608,186.54,186.51,12.41]
[1722085684854,5.3608,186.54,186.5,12.41]
[1722085685049,5.3608,186.54,186.48,11.8615]
[1722085685050,5.3616,186.51,186.48,6.4991]
[1722085685250,5.3617,186.51,186.48,6.4991]
[1722085685451,12.41,186.54,186.48,6.4991]
[1722085685661,5.3613,186.52,186.48,6.4991]
[1722085686955,5.3611,186.53,186.48,6.4991]
[1722085687561,5.3613,186.52,186.48,6.4991]
[1722085689370,5.3616,186.51,186.48,6.4991]
[1722085689566,5.3622,186.49,186.46,16.5317]
[1722085689775,5.3621,186.5,186.43,17.7738]
[1722085689951,12.41,186.51,186.43,17.7738]
[1722085690556,32.41,186.51,186.42,20.8279]
[1722085690756,5.3622,186.49,186.43,17.7739]
[1722085691086,5.3622,186.49,186.43,5.3639]
[1722085691290,5.3622,186.49,186.43,17.7739]
[1722085691973,5.3625,186.48,186.43,12.41]
[1722085692185,5.3625,186.48,186.42,15.4638]
[1722085692476,5.3633,186.45,186.4,13.4114]
[1722085693171,25.3633,186.45,186.39,5.365]
[1722085693380,25.3633,186.45,186.39,17.775]
[1722085694270,20.0,186.48,186.4,25.8217]
[1722085694480,5.3628,186.47,186.42,5.3642]
[1722085694652,5.3628,186.47,186.42,17.7742]
[1722085695348,20.0,186.48,186.37,21.8626]
[1722085695349,32.41,186.45,186.39,12.41]
[1722085695546,5.3637,186.44,186.39,12.41]
[1722085696186,5.3637,186.44,186.39,17.775]
[1722085697078,37.7734,186.45,186.39,17.775]
[1722085697869,37.7734,186.45,186.39,5.365]
[1722085700055,37.7734,186.45,186.4,5.3647]
[1722085700977,37.7734,186.45,186.39,5.365]
[1722085701475,12.41,186.44,186.39,5.365]
[1722085702377,37.7734,186.45,186.4,5.3648]
[1722085703079,37.7734,186.45,186.39,5.365]
[1722085703284,12.41,186.44,186.39,5.365]
[1722085704060,18.00575046,186.44,186.39,5.365]
[1722085704662,23.36935046,186.44,186.39,5.365]
[1722085704982,18.00575046,186.44,186.39,5.365]
[1722085705158,12.41,186.44,186.4,5.3647]
[1722085705363,20.0,186.47,186.41,5.3644]
[1722085705574,62.7731,186.46,186.41,5.3644]
[1722085707279,5.59258415,186.47,186.42,12.41]
[1722085707476,37.7725,186.49,186.43,5.3638]
[1722085707680,5.59231688,186.48,186.43,5.3638]
[1722085708080,5.3624,186.49,186.43,5.3638]
[1722085708270,25.59243057,186.51,186.44,5.3635]
[1722085708474,38.00243057,186.51,186.44,25.8184]
[1722085708786,20.0,186.51,186.47,5.3626]
[1722085708991,10.95552579,186.53,186.47,17.7726]
[1722085709179,5.3612,186.53,186.48,5.3623]
[1722085710167,5.3612,186.53,186.47,17.7727]
[1722085711299,5.3616,186.51,186.46,25.8172]
[1722085711473,5.3616,186.51,186.46,13.4072]
[1722085712082,12.41,186.51,186.44,27.703]
[1722085712284,17.7719,186.5,186.44,27.703]
[1722085713273,17.7719,186.5,186.44,22.3394]
[1722085713274,12.41,186.49,186.44,22.3394]
[1722085713589,17.7725,186.48,186.44,22.3394]
[1722085714169,32.41,186.48,186.41,5.3645]
[1722085714370,12.41,186.47,186.4,12.41]
[1722085714566,17.7739,186.44,186.39,35.7518]
[1722085714770,17.774,186.43,186.39,22.3394]
[1722085715177,17.7737,186.44,186.39,27.7044]
[1722085715377,37.7734,186.45,186.39,27.7044]
[1722085716486,5.363,186.46,186.4,17.7746]
[1722085716791,5.3628,186.47,186.41,17.7744]
[1722085717096,5.3622,186.49,186.44,5.3636]
[1722085717294,20.0,186.51,186.43,12.41]
[1722085717295,5.3625,186.48,186.43,17.7738]
[1722085717772,5.3625,186.48,186.42,17.7741]
[1722085718590,5.3625,186.48,186.42,5.3641]
[1722085720490,5.3625,186.48,186.41,25.8208]
[1722085720684,5.3625,186.48,186.43,17.7738]
[1722085721295,5.3625,186.48,186.43,5.3638]
[1722085721478,5.3625,186.48,186.43,17.7738]
[1722085721678,5.3622,186.49,186.43,17.7738]
[1722085722590,5.3622,186.49,186.44,5.3636]
[1722085723390,5.3622,186.49,186.43,17.7739]
[1722085723894,5.3625,186.48,186.43,17.7739]
[1722085725003,5.3622,186.49,186.43,17.7739]
[1722085726595,5.3622,186.49,186.44,17.7735]
[1722085726783,5.3622,186.49,186.44,5.3635]
[1722085726990,5.3622,186.49,186.43,31.1831]
[1722085730087,5.3625,186.48,186.43,31.1831]
[1722085730288,5.3625,186.48,186.43,18.7731]
[1722085730802,12.41,186.5,186.42,17.7741]
[1722085730803,5.3629,186.47,186.42,17.7741]
[1722085731002,5.3629,186.47,186.4,13.4117]
[1722085731003,32.41,186.48,186.4,18.7764]
[1722085731189,5.3634,186.45,186.4,31.1864]
[1722085731389,13.4052,186.5,186.4,13.4117]
[1722085731390,5.3637,186.44,186.4,13.4117]
[1722085731591,5.3634,186.45,186.4,13.4117]
[1722085732397,5.3636,186.44,186.4,13.4117]
[1722085733108,25.3633,186.46,186.4,18.7764]
[1722085733491,5.3634,186.45,186.4,18.7764]
[1722085737914,25.3637,186.44,186.39,22.3394]
[1722085738113,5.3639,186.43,186.39,22.3394]
[1722085738492,37.7737,186.44,186.39,22.3394]
[1722085739216,5.3639,186.43,186.39,22.3394]
[1722085739916,37.7737,186.44,186.39,22.3394]
[1722085740324,25.3633,186.46,186.39,48.1616]
[1722085740619,9.6776875,186.45,186.4,17.7747]
[1722085740921,25.3633,186.46,186.4,17.7747]
[1722085741107,9.67774596,186.45,186.41,5.3645]
[1722085741417,25.3633,186.46,186.41,5.3645]
[1722085741620,9.67774363,186.45,186.41,5.3645]
[1722085741816,5.3633,186.46,186.41,5.3645]
[1722085742219,18.00809826,186.47,186.41,13.4105]
[1722085742400,13.4029,186.53,186.39,22.3394]
[1722085742401,20.0,186.5,186.45,5.3633]
[1722085742610,5.3615,186.52,186.46,17.7728]
[1722085742812,20.0,186.53,186.47,34.8702]
[1722085742813,9.67485326,186.51,186.47,34.8702]
[1722085743118,5.361,186.53,186.47,34.8702]
[1722085743500,9.67432365,186.52,186.47,34.8702]
[1722085743821,5.361,186.53,186.47,40.2329]
[1722085745329,5.3614,186.52,186.47,40.2329]
[1722085746010,5.361,186.54,186.48,5.3624]
[1722085746215,5.3602,186.56,186.51,12.41]
[1722085746410,5.3602,186.56,186.51,17.7716]
[1722085746814,9.67291146,186.55,186.51,17.7716]
[1722085747014,5.3602,186.56,186.51,17.7716]
[1722085747527,5.3599,186.57,186.51,17.7716]
[1722085747715,9.67257583,186.56,186.51,17.7716]
[1722085747915,5.3599,186.57,186.51,17.7716]
[1722085748116,15.03278125,186.56,186.51,17.7716]
[1722085748432,15.03278125,186.56,186.51,12.41]
[1722085748433,5.3602,186.56,186.51,12.41]
[1722085748929,32.41,186.55,186.47,22.4602]
[1722085749119,5.3613,186.52,186.47,22.4602]
[1722085749628,5.3611,186.53,186.48,12.41]
[1722085749804,5.3608,186.54,186.48,25.8159]
[1722085750010,5.3608,186.54,186.49,12.41]
[1722085750416,5.3608,186.54,186.5,12.41]
[1722085751022,5.3608,186.54,186.49,12.41]
[1722085751736,5.3608,186.54,186.49,17.7721]
[1722085751910,5.3608,186.54,186.49,5.3621]
[1722085752115,5.3611,186.53,186.48,31.1783]
[1722085752334,20.0,186.53,186.47,22.4602]
[1722085752514,32.41,186.53,186.47,22.4602]
[1722085753216,12.41,186.57,186.48,12.41]
[1722085753217,20.0,186.57,186.48,12.41]
[1722085753434,20.0,186.57,186.47,35.8666]
[1722085753435,9.67372261,186.56,186.52,12.41]
[1722085753630,13.3992,186.58,186.52,12.41]
[1722085753631,5.3605,186.55,186.52,12.41]
[1722085753934,5.3601,186.57,186.51,17.7714]
[1722085754129,9.67249163,186.56,186.53,12.41]
[1722085754327,5.3595,186.59,186.54,34.2577]
[1722085754521,15.03110736,186.58,186.54,34.2577]
[1722085754723,5.3596,186.58,186.54,34.2577]
[1722085754919,5.3594,186.59,186.54,34.2577]
[1722085755115,5.3594,186.59,186.54,39.6183]
[1722085755632,5.3597,186.58,186.54,21.8477]
[1722085756634,18.00723887,186.6,186.5,39.6195]
[1722085756635,20.0,186.59,186.5,39.6195]
[1722085756819,32.41,186.57,186.5,39.6195]
[1722085757138,5.3605,186.55,186.5,39.6195]
[1722085757313,5.3602,186.56,186.5,39.6195]
[1722085757519,5.3602,186.56,186.51,5.3615]
[1722085757920,5.3602,186.56,186.5,39.6195]
[1722085758235,5.3606,186.55,186.5,39.6195]
[1722085758434,18.99533887,186.6,186.5,21.8477]
[1722085758435,5.3607,186.54,186.5,21.8477]
[1722085759449,5.3611,186.53,186.5,21.8477]
[1722085759947,5.3607,186.54,186.5,21.8477]
[1722085765727,5.3613,186.52,186.47,5.3627]
[1722085766044,5.3619,186.5,186.46,35.9361]
[1722085766245,5.3616,186.51,186.46,41.2991]
[1722085766548,5.3613,186.52,186.47,5.3627]
[1722085767226,5.3609,186.54,186.49,5.3621]
[1722085767431,5.3611,186.53,186.48,5.3624]
[1722085767849,5.3608,186.54,186.46,35.9361]
[1722085768148,5.3608,186.54,186.48,5.3624]
[1722085768832,5.3612,186.53,186.48,5.3624]
[1722085772647,5.3612,186.53,186.47,5.3627]
[1722085773253,5.3612,186.53,186.48,5.3624]
[1722085775171,20.0,186.55,186.46,22.5286]
[1722085775463,2.11707108,186.6,186.28,388.1904134]
[1722085775464,20.0,186.61,186.57,13.3996]
[1722085775662,25.3588,186.61,186.54,1.07196722]
[1722085775837,25.3588,186.61,186.53,22.7948]
[1722085775838,5.3587,186.62,186.55,6.43234945]
[1722085776041,5.3584,186.63,186.55,1.07194945]
[1722085776240,5.3582,186.63,186.58,5.3596]
[1722085776574,9.66988243,186.62,186.59,13.3983]
[1722085776872,5.3591,186.6,186.55,14.47259715]
[1722085777037,20.0,186.67,186.56,5.3601]
[1722085777038,5.3587,186.62,186.56,5.3601]
[1722085777238,33.84608725,186.69,186.57,1.0716968]
[1722085777470,9.66749999,186.68,186.58,14.47062495]
[1722085777678,5.3573,186.67,186.6,5.359]
[1722085777951,20.0,186.67,186.56,5.3601]
[1722085778152,20.0,186.67,186.55,1.07161985]
[1722085778153,5.3582,186.63,186.57,5.3598]
[1722085778347,20.0,186.67,186.55,1.07161985]
[1722085778348,5.3579,186.65,186.58,5.3595]
[1722085778963,20.0,186.67,186.55,27.87291985]
[1722085779169,10.96031557,186.69,186.62,5.3584]
[1722085779464,20.0,186.71,186.59,1.07140833]
[1722085779644,9.66736481,186.68,186.62,13.3959]
[1722085779843,5.3564,186.69,186.62,13.3959]
[1722085780435,25.59697158,186.71,186.62,13.3959]
[1722085780436,5.3561,186.71,186.64,5.3578]
[1722085780659,5.3561,186.71,186.65,1.07131026]
[1722085781162,5.3563,186.7,186.65,1.07131026]
[1722085781533,5.3566,186.69,186.65,1.07131026]
[1722085781734,5.3568,186.68,186.62,13.3959]
[1722085781956,20.0,186.72,186.62,13.3959]
[1722085782257,5.3567,186.68,186.62,18.7543]
[1722085782838,20.0,186.69,186.58,13.399]
[1722085783043,20.0,186.67,186.58,13.399]
[1722085783249,5.358,186.64,186.58,18.7583]
[1722085783858,5.3576,186.65,186.59,5.3592]
[1722085784961,5.3576,186.65,186.58,14.47062074]
[1722085784962,20.0,186.71,186.61,13.3965]
[1722085785160,5.357,186.68,186.62,5.3584]
[1722085785535,5.3563,186.7,186.61,14.46791758]
[1722085785737,5.3563,186.7,186.65,28.3047]
[1722085786377,5.3557,186.72,186.66,18.7503]
[1722085786666,5.59798355,186.74,186.66,13.3931]
[1722085786871,20.0,186.75,186.66,13.3931]
[1722085787051,5.3566,186.69,186.65,22.9472]
[1722085787255,5.3561,186.71,186.65,28.3047]
[1722085787564,5.3556,186.72,186.66,5.3572]
[1722085787887,5.3556,186.72,186.65,22.9472]
[1722085787888,5.59881812,186.76,186.72,5.3555]
[1722085788163,20.0,186.81,186.68,13.3914]
[1722085788381,5.3553,186.74,186.66,5.3572]
[1722085788543,5.355,186.75,186.68,5.3566]
[1722085788749,5.3543,186.77,186.65,39.0872]
[1722085788971,5.3543,186.77,186.67,16.14]
[1722085789152,25.3533,186.8,186.68,45.0]
[1722085789361,2.22405576,186.83,186.68,45.0]
[1722085789362,30.95369292,186.83,186.69,6.6561]
[1722085789567,30.95369292,186.83,186.71,15.6465]
[1722085789568,5.3548,186.75,186.71,15.6465]